[Event "Titled Tuesday Blitz October 31 Early 2023"]
[White "Jain Kashish Manoj"]
[Black "NovozhilovSemen"]
[WhiteFideId "35081098"]
[WhiteElo "2633"]
[BlackElo "2737"]
[Result "0-1"]
[Round "7"]
[TimeControl "180+1"]
[Date "2023.10.31"]
[WhiteClock "0:00:00"]
[BlackClock "0:00:14"]
[Board "39"]

1. e4 {[%clk 0:03:00]}  c5 {[%clk 0:02:59]} 2. Nf3 {[%clk 0:03:01]}  Nc6 {[%clk 0:02:58]} 3. Bb5 {[%clk 0:03:01]}  g6 {[%clk 0:02:58]} 4. O-O {[%clk 0:03:00]}  Bg7 {[%clk 0:02:57]} 5. Nc3 {[%clk 0:03:00]}  Nd4 {[%clk 0:02:50]} 6. Ba4 {[%clk 0:02:53]}  e6 {[%clk 0:02:49]} 7. Nxd4 {[%clk 0:02:48]}  cxd4 {[%clk 0:02:49]} 8. Ne2 {[%clk 0:02:48]}  Ne7 {[%clk 0:02:49]} 9. d3 {[%clk 0:02:46]}  O-O {[%clk 0:02:49]} 10. Kh1 {[%clk 0:02:44]}  d5 {[%clk 0:02:47]} 11. f3 {[%clk 0:02:41]}  e5 {[%clk 0:02:46]} 12. Qe1 {[%clk 0:02:35]}  Be6 {[%clk 0:02:39]} 13. Qh4 {[%clk 0:02:27]}  Rc8 {[%clk 0:02:36]} 14. Bg5 {[%clk 0:01:55]}  f6 {[%clk 0:02:34]} 15. Bh6 {[%clk 0:01:55]}  dxe4 {[%clk 0:01:54]} 16. Bxg7 {[%clk 0:01:51]}  Kxg7 {[%clk 0:01:54]} 17. fxe4 {[%clk 0:01:40]}  a6 {[%clk 0:01:46]} 18. Rf2 {[%clk 0:01:34]}  Qa5 {[%clk 0:01:42]} 19. Bb3 {[%clk 0:01:09]}  Bxb3 {[%clk 0:01:40]} 20. cxb3 {[%clk 0:01:10]}  Rc6 {[%clk 0:01:07]} 21. a3 {[%clk 0:01:05]}  Qd2 {[%clk 0:00:59]} 22. Ng1 {[%clk 0:00:16]}  Qxd3 {[%clk 0:00:57]} 23. Rf3 {[%clk 0:00:16]}  Qc2 {[%clk 0:00:54]} 24. Rh3 {[%clk 0:00:15]}  h5 {[%clk 0:00:51]} 25. Rg3 {[%clk 0:00:15]}  Rh8 {[%clk 0:00:43]} 26. Rf1 {[%clk 0:00:15]}  g5 {[%clk 0:00:31]} 27. Qh3 {[%clk 0:00:09]}  Rd6 {[%clk 0:00:19]} 28. Nf3 {[%clk 0:00:06]}  Qc8 {[%clk 0:00:17]} 29. Nxg5 {[%clk 0:00:05]}  Qxh3 {[%clk 0:00:16]} 30. Nxh3+ {[%clk 0:00:05]}  Kf7 {[%clk 0:00:17]} 31. Rd3 {[%clk 0:00:05]}  Rc8 {[%clk 0:00:16]} 32. Ng5+ {[%clk 0:00:05]}  Kg6 {[%clk 0:00:15]} 33. Nf3 {[%clk 0:00:05]}  Rc2 {[%clk 0:00:15]} 34. Nd2 {[%clk 0:00:05]}  b5 {[%clk 0:00:14]} 35. a4 {[%clk 0:00:03]}  Rxb2 {[%clk 0:00:15]} 36. axb5 {[%clk 0:00:03]}  axb5 {[%clk 0:00:15]} 37. h4 {[%clk 0:00:04]}  Nc6 {[%clk 0:00:15]} 38. Rg3+ {[%clk 0:00:03]}  Kf7 {[%clk 0:00:15]} 39. Rc1 {[%clk 0:00:00]}  Rxd2 {[%clk 0:00:14]} 0-1


[Site "https://www.chess.com"]

[Event "Titled Tuesday Blitz October 31 Early 2023"]
[White "Arslanov, Shamil"]
[Black "Kislinsky, Alexey"]
[WhiteFideId "4192826"]
[BlackFideId "14108801"]
[WhiteElo "2631"]
[BlackElo "2733"]
[Result "0-1"]
[Round "7"]
[TimeControl "180+1"]
[Date "2023.10.31"]
[WhiteClock "0:00:00"]
[BlackClock "0:00:09"]
[Board "40"]

1. d4 {[%clk 0:02:53]}  Nf6 {[%clk 0:02:57]} 2. f3 {[%clk 0:02:52]}  d5 {[%clk 0:02:55]} 3. e4 {[%clk 0:02:53]}  dxe4 {[%clk 0:02:54]} 4. Nc3 {[%clk 0:02:53]}  exf3 {[%clk 0:02:34]} 5. Nxf3 {[%clk 0:02:54]}  Bg4 {[%clk 0:02:34]} 6. h3 {[%clk 0:02:54]}  Bxf3 {[%clk 0:02:32]} 7. Qxf3 {[%clk 0:02:55]}  c6 {[%clk 0:02:33]} 8. g4 {[%clk 0:02:54]}  e6 {[%clk 0:02:33]} 9. g5 {[%clk 0:02:54]}  Nd5 {[%clk 0:02:32]} 10. Bd3 {[%clk 0:02:54]}  Nb4 {[%clk 0:02:26]} 11. Be4 {[%clk 0:02:54]}  Be7 {[%clk 0:02:08]} 12. h4 {[%clk 0:02:36]}  Nd7 {[%clk 0:01:56]} 13. a3 {[%clk 0:01:38]}  Nd5 {[%clk 0:01:52]} 14. Rf1 {[%clk 0:01:27]}  O-O {[%clk 0:01:48]} 15. Bd2 {[%clk 0:01:18]}  f5 {[%clk 0:01:40]} 16. Bxd5 {[%clk 0:01:11]}  exd5 {[%clk 0:01:40]} 17. O-O-O {[%clk 0:01:07]}  b5 {[%clk 0:01:30]} 18. g6 {[%clk 0:01:01]}  h6 {[%clk 0:01:22]} 19. Ne2 {[%clk 0:00:41]}  Bxh4 {[%clk 0:00:22]} 20. Kb1 {[%clk 0:00:38]}  Nf6 {[%clk 0:00:17]} 21. Rh1 {[%clk 0:00:36]}  Ne4 {[%clk 0:00:17]} 22. Bb4 {[%clk 0:00:31]}  Be7 {[%clk 0:00:16]} 23. Bd2 {[%clk 0:00:18]}  Bg5 {[%clk 0:00:16]} 24. Bb4 {[%clk 0:00:17]}  Rf6 {[%clk 0:00:17]} 25. Qh5 {[%clk 0:00:16]}  Qe8 {[%clk 0:00:16]} 26. Nc3 {[%clk 0:00:15]}  Qxg6 {[%clk 0:00:15]} 27. Qh3 {[%clk 0:00:15]}  Rf7 {[%clk 0:00:13]} 28. Rdg1 {[%clk 0:00:16]}  Nf2 {[%clk 0:00:10]} 29. Qg2 {[%clk 0:00:13]}  Nxh1 {[%clk 0:00:10]} 30. Qxh1 {[%clk 0:00:14]}  Qf6 {[%clk 0:00:08]} 31. Nd1 {[%clk 0:00:11]}  Re8 {[%clk 0:00:08]} 32. Nf2 {[%clk 0:00:09]}  Be3 {[%clk 0:00:09]} 33. Qg2 {[%clk 0:00:05]}  Bxf2 {[%clk 0:00:09]} 34. Qxf2 {[%clk 0:00:06]}  f4 {[%clk 0:00:10]} 35. Bd2 {[%clk 0:00:03]}  f3 {[%clk 0:00:10]} 36. Be3 {[%clk 0:00:03]}  Qe6 {[%clk 0:00:09]} 37. Re1 {[%clk 0:00:03]}  Rfe7 {[%clk 0:00:08]} 38. Ka2 {[%clk 0:00:03]}  Qxe3 {[%clk 0:00:08]} 39. Rxe3 {[%clk 0:00:00]}  Rxe3 {[%clk 0:00:09]} 0-1


[Site "https://www.chess.com"]

[Event "Titled Tuesday Blitz October 31 Early 2023"]
[White "Krzyzanowski, Marcin"]
[Black "Bodnaruk, Anastasia"]
[WhiteFideId "1132199"]
[BlackFideId "4181751"]
[WhiteElo "2733"]
[BlackElo "2622"]
[Result "1-0"]
[Round "7"]
[TimeControl "180+1"]
[Date "2023.10.31"]
[WhiteClock "0:00:08"]
[BlackClock "0:00:00"]
[Board "42"]

1. e4 {[%clk 0:03:00]}  c5 {[%clk 0:02:59]} 2. Nf3 {[%clk 0:03:01]}  d6 {[%clk 0:03:00]} 3. d4 {[%clk 0:03:01]}  cxd4 {[%clk 0:03:00]} 4. Nxd4 {[%clk 0:03:02]}  Nf6 {[%clk 0:03:01]} 5. Nc3 {[%clk 0:03:02]}  a6 {[%clk 0:03:01]} 6. Be2 {[%clk 0:03:03]}  e5 {[%clk 0:03:01]} 7. Nb3 {[%clk 0:03:03]}  Be7 {[%clk 0:03:01]} 8. O-O {[%clk 0:03:03]}  O-O {[%clk 0:03:02]} 9. Qd3 {[%clk 0:03:03]}  Be6 {[%clk 0:02:57]} 10. Bd2 {[%clk 0:02:53]}  Nbd7 {[%clk 0:02:50]} 11. Nd5 {[%clk 0:02:47]}  Rc8 {[%clk 0:02:29]} 12. c4 {[%clk 0:02:39]}  b6 {[%clk 0:02:25]} 13. Rad1 {[%clk 0:02:18]}  a5 {[%clk 0:02:21]} 14. a4 {[%clk 0:02:08]}  Bxd5 {[%clk 0:02:05]} 15. exd5 {[%clk 0:02:03]}  Nc5 {[%clk 0:02:03]} 16. Nxc5 {[%clk 0:02:03]}  bxc5 {[%clk 0:02:02]} 17. Qh3 {[%clk 0:02:02]}  Rb8 {[%clk 0:01:59]} 18. Bc3 {[%clk 0:01:55]}  Qd7 {[%clk 0:01:54]} 19. Qxd7 {[%clk 0:01:43]}  Nxd7 {[%clk 0:01:54]} 20. Bg4 {[%clk 0:01:35]}  f5 {[%clk 0:01:53]} 21. Bh3 {[%clk 0:01:35]}  Bd8 {[%clk 0:01:49]} 22. f4 {[%clk 0:01:31]}  e4 {[%clk 0:01:45]} 23. g4 {[%clk 0:01:31]}  Bf6 {[%clk 0:01:32]} 24. Bxa5 {[%clk 0:01:11]}  Rxb2 {[%clk 0:01:28]} 25. Bc7 {[%clk 0:01:07]}  e3 {[%clk 0:01:27]} 26. Rfe1 {[%clk 0:00:56]}  e2 {[%clk 0:01:20]} 27. Rd3 {[%clk 0:00:51]}  Bd4+ {[%clk 0:01:17]} 28. Kg2 {[%clk 0:00:47]}  Nf6 {[%clk 0:00:52]} 29. gxf5 {[%clk 0:00:39]}  Ne4 {[%clk 0:00:35]} 30. Bg4 {[%clk 0:00:39]}  Rc8 {[%clk 0:00:16]} 31. Ba5 {[%clk 0:00:33]}  Ra8 {[%clk 0:00:16]} 32. Bc7 {[%clk 0:00:29]}  Ra7 {[%clk 0:00:16]} 33. Bd8 {[%clk 0:00:28]}  Rxa4 {[%clk 0:00:16]} 34. Rxe2 {[%clk 0:00:23]}  Rxe2+ {[%clk 0:00:16]} 35. Bxe2 {[%clk 0:00:24]}  Rxc4 {[%clk 0:00:16]} 36. Kf3 {[%clk 0:00:22]}  Bf6 {[%clk 0:00:13]} 37. Re3 {[%clk 0:00:20]}  Nd2+ {[%clk 0:00:11]} 38. Kg4 {[%clk 0:00:19]}  Bxd8 {[%clk 0:00:09]} 39. Bxc4 {[%clk 0:00:19]}  Bf6 {[%clk 0:00:06]} 40. Bb5 {[%clk 0:00:18]}  c4 {[%clk 0:00:06]} 41. Ra3 {[%clk 0:00:14]}  c3 {[%clk 0:00:06]} 42. Bd3 {[%clk 0:00:11]}  Kf7 {[%clk 0:00:05]} 43. Ra7+ {[%clk 0:00:10]}  Ke8 {[%clk 0:00:05]} 44. Rc7 {[%clk 0:00:11]}  Nb3 {[%clk 0:00:03]} 45. Bb5+ {[%clk 0:00:10]}  Kd8 {[%clk 0:00:03]} 46. Rc4 {[%clk 0:00:09]}  Nd2 {[%clk 0:00:03]} 47. Rc6 {[%clk 0:00:09]}  Ne4 {[%clk 0:00:03]} 48. Ba4 {[%clk 0:00:08]}  Nc5 {[%clk 0:00:03]} 49. Bc2 {[%clk 0:00:09]}  Ke7 {[%clk 0:00:03]} 50. Kf3 {[%clk 0:00:08]}  h5 {[%clk 0:00:02]} 51. Ke3 {[%clk 0:00:08]}  h4 {[%clk 0:00:02]} 52. Kf3 {[%clk 0:00:08]}  Kd7 {[%clk 0:00:00]} 53. Kg4 {[%clk 0:00:08]} 1-0


[Site "https://www.chess.com"]

[Event "Titled Tuesday Blitz October 31 Early 2023"]
[White "Kosteniuk, Alexandra"]
[Black "NelsonLinda"]
[WhiteFideId "4128125"]
[WhiteElo "2728"]
[BlackElo "2618"]
[Result "0-1"]
[Round "7"]
[TimeControl "180+1"]
[Date "2023.10.31"]
[WhiteClock "0:00:01"]
[BlackClock "0:00:07"]
[Board "43"]

1. Nf3 {[%clk 0:03:00]}  Nf6 {[%clk 0:02:59]} 2. g3 {[%clk 0:03:01]}  g6 {[%clk 0:02:59]} 3. Bg2 {[%clk 0:03:02]}  Bg7 {[%clk 0:02:59]} 4. O-O {[%clk 0:03:02]}  O-O {[%clk 0:02:59]} 5. d4 {[%clk 0:03:02]}  d6 {[%clk 0:03:00]} 6. c4 {[%clk 0:03:02]}  Nc6 {[%clk 0:03:00]} 7. d5 {[%clk 0:03:01]}  Na5 {[%clk 0:03:00]} 8. Nfd2 {[%clk 0:03:00]}  c6 {[%clk 0:02:43]} 9. b4 {[%clk 0:02:49]}  Nd7 {[%clk 0:02:19]} 10. bxa5 {[%clk 0:02:36]}  Bxa1 {[%clk 0:02:18]} 11. dxc6 {[%clk 0:02:32]}  bxc6 {[%clk 0:02:19]} 12. Bxc6 {[%clk 0:02:32]}  Rb8 {[%clk 0:02:19]} 13. Nb3 {[%clk 0:02:32]}  Bg7 {[%clk 0:02:18]} 14. Bg2 {[%clk 0:02:24]}  Ne5 {[%clk 0:02:13]} 15. Be3 {[%clk 0:02:18]}  Qc7 {[%clk 0:02:03]} 16. Qc1 {[%clk 0:01:44]}  Ba6 {[%clk 0:01:58]} 17. c5 {[%clk 0:01:24]}  Bxe2 {[%clk 0:01:42]} 18. cxd6 {[%clk 0:01:12]}  Qxd6 {[%clk 0:01:42]} 19. Bc5 {[%clk 0:01:04]}  Qc7 {[%clk 0:01:34]} 20. Be3 {[%clk 0:00:54]}  Rfc8 {[%clk 0:01:13]} 21. Qxc7 {[%clk 0:00:51]}  Rxc7 {[%clk 0:01:13]} 22. Re1 {[%clk 0:00:51]}  Nf3+ {[%clk 0:01:12]} 23. Bxf3 {[%clk 0:00:51]}  Bxf3 {[%clk 0:01:13]} 24. N1d2 {[%clk 0:00:51]}  Bd5 {[%clk 0:01:12]} 25. Bf4 {[%clk 0:00:50]}  e5 {[%clk 0:01:12]} 26. Bxe5 {[%clk 0:00:50]}  Re8 {[%clk 0:01:10]} 27. f4 {[%clk 0:00:47]}  f6 {[%clk 0:01:09]} 28. Bxc7 {[%clk 0:00:47]}  Rxe1+ {[%clk 0:01:07]} 29. Kf2 {[%clk 0:00:47]}  Rh1 {[%clk 0:01:04]} 30. h4 {[%clk 0:00:27]}  f5 {[%clk 0:01:04]} 31. Bb8 {[%clk 0:00:25]}  a6 {[%clk 0:01:02]} 32. Be5 {[%clk 0:00:22]}  Bf8 {[%clk 0:00:27]} 33. Ke3 {[%clk 0:00:19]}  Rg1 {[%clk 0:00:25]} 34. Kd4 {[%clk 0:00:18]}  Bf7 {[%clk 0:00:20]} 35. Nf3 {[%clk 0:00:16]}  Rxg3 {[%clk 0:00:20]} 36. Ke3 {[%clk 0:00:17]}  Bd5 {[%clk 0:00:17]} 37. Nd2 {[%clk 0:00:11]}  Bc5+ {[%clk 0:00:13]} 38. Ke2 {[%clk 0:00:12]}  Rg2+ {[%clk 0:00:13]} 39. Kd3 {[%clk 0:00:12]}  Bxf3 {[%clk 0:00:10]} 40. Nxf3 {[%clk 0:00:12]}  Rxa2 {[%clk 0:00:11]} 41. Bc3 {[%clk 0:00:09]}  Ra3 {[%clk 0:00:10]} 42. Kc4 {[%clk 0:00:09]}  Be3 {[%clk 0:00:10]} 43. Ne5 {[%clk 0:00:06]}  Bxf4 {[%clk 0:00:08]} 44. Nd7 {[%clk 0:00:07]}  Bc7 {[%clk 0:00:07]} 45. Bb4 {[%clk 0:00:02]}  Rxa5 {[%clk 0:00:06]} 46. Bxa5 {[%clk 0:00:02]}  Bxa5 {[%clk 0:00:07]} 47. Nc5 {[%clk 0:00:03]}  Bd8 {[%clk 0:00:06]} 48. Nxa6 {[%clk 0:00:03]}  Bxh4 {[%clk 0:00:06]} 49. Kd5 {[%clk 0:00:04]}  Kg7 {[%clk 0:00:06]} 50. Ke5 {[%clk 0:00:04]}  Bg3+ {[%clk 0:00:07]} 51. Ke6 {[%clk 0:00:04]}  h5 {[%clk 0:00:07]} 52. Nc5 {[%clk 0:00:01]}  h4 {[%clk 0:00:07]} 0-1


[Site "https://www.chess.com"]

[Event "Titled Tuesday Blitz October 31 Early 2023"]
[White "Gubajdullin, Alexei"]
[Black "Alinasab, Mobina"]
[WhiteFideId "4141202"]
[BlackFideId "12528897"]
[WhiteElo "2720"]
[BlackElo "2537"]
[Result "1-0"]
[Round "7"]
[TimeControl "180+1"]
[Date "2023.10.31"]
[WhiteClock "0:01:03"]
[BlackClock "0:00:00"]
[Board "47"]

1. d4 {[%clk 0:02:59]}  Nf6 {[%clk 0:03:00]} 2. Nf3 {[%clk 0:02:59]}  e6 {[%clk 0:03:00]} 3. Bf4 {[%clk 0:02:58]}  b6 {[%clk 0:03:00]} 4. e3 {[%clk 0:02:58]}  Bb7 {[%clk 0:03:01]} 5. Be2 {[%clk 0:02:57]}  Be7 {[%clk 0:03:02]} 6. h3 {[%clk 0:02:56]}  c5 {[%clk 0:03:02]} 7. O-O {[%clk 0:02:55]}  cxd4 {[%clk 0:03:03]} 8. exd4 {[%clk 0:02:55]}  O-O {[%clk 0:03:03]} 9. Bh2 {[%clk 0:02:52]}  d6 {[%clk 0:03:02]} 10. c3 {[%clk 0:02:50]}  Nbd7 {[%clk 0:03:02]} 11. a4 {[%clk 0:02:48]}  a6 {[%clk 0:03:02]} 12. Na3 {[%clk 0:02:48]}  Qc7 {[%clk 0:03:02]} 13. Nc4 {[%clk 0:02:46]}  Rfe8 {[%clk 0:03:02]} 14. Ne3 {[%clk 0:02:45]}  Bf8 {[%clk 0:03:02]} 15. Re1 {[%clk 0:02:45]}  g6 {[%clk 0:03:01]} 16. Nd2 {[%clk 0:02:41]}  Rac8 {[%clk 0:03:00]} 17. Bf3 {[%clk 0:02:41]}  Bxf3 {[%clk 0:02:55]} 18. Qxf3 {[%clk 0:02:41]}  Qb8 {[%clk 0:02:52]} 19. g4 {[%clk 0:02:33]}  Qa8 {[%clk 0:02:46]} 20. Qxa8 {[%clk 0:02:26]}  Rxa8 {[%clk 0:02:46]} 21. g5 {[%clk 0:02:25]}  Nh5 {[%clk 0:02:46]} 22. Ndc4 {[%clk 0:02:14]}  d5 {[%clk 0:02:45]} 23. Ne5 {[%clk 0:02:14]}  Nxe5 {[%clk 0:02:44]} 24. Bxe5 {[%clk 0:02:13]}  Be7 {[%clk 0:02:45]} 25. h4 {[%clk 0:02:13]}  f6 {[%clk 0:02:45]} 26. gxf6 {[%clk 0:02:08]}  Bxf6 {[%clk 0:02:45]} 27. Ng4 {[%clk 0:02:06]}  Bxh4 {[%clk 0:02:32]} 28. Nh6+ {[%clk 0:02:02]}  Kf8 {[%clk 0:02:32]} 29. Re3 {[%clk 0:01:58]}  Bf6 {[%clk 0:02:29]} 30. Rf3 {[%clk 0:01:52]}  Kg7 {[%clk 0:02:26]} 31. Rxf6 {[%clk 0:01:37]}  Nxf6 {[%clk 0:01:54]} 32. Ng4 {[%clk 0:01:37]}  Rf8 {[%clk 0:01:53]} 33. c4 {[%clk 0:01:30]}  dxc4 {[%clk 0:01:47]} 34. Rc1 {[%clk 0:01:29]}  Rac8 {[%clk 0:01:44]} 35. b3 {[%clk 0:01:20]}  cxb3 {[%clk 0:01:26]} 36. Rb1 {[%clk 0:01:10]}  h5 {[%clk 0:00:15]} 37. Nxf6 {[%clk 0:01:08]}  Rxf6 {[%clk 0:00:13]} 38. Rxb3 {[%clk 0:01:08]}  g5 {[%clk 0:00:14]} 39. Rxb6 {[%clk 0:01:07]}  Kg6 {[%clk 0:00:14]} 40. Bxf6 {[%clk 0:01:06]}  Kxf6 {[%clk 0:00:15]} 41. d5 {[%clk 0:01:06]}  Kf5 {[%clk 0:00:00]} 42. dxe6 {[%clk 0:01:03]} 1-0


[Site "https://www.chess.com"]

[Event "Titled Tuesday Blitz October 31 Early 2023"]
[White "Tikhonov, Viacheslav"]
[Black "Atakhan, Abtin"]
[WhiteFideId "44196407"]
[BlackFideId "22502203"]
[WhiteElo "2500"]
[BlackElo "2704"]
[Result "1-0"]
[Round "7"]
[TimeControl "180+1"]
[Date "2023.10.31"]
[WhiteClock "0:00:40"]
[BlackClock "0:00:34"]
[Board "49"]

1. e4 {[%clk 0:03:00]}  c6 {[%clk 0:03:00]} 2. d4 {[%clk 0:03:01]}  d5 {[%clk 0:03:01]} 3. Nc3 {[%clk 0:03:01]}  dxe4 {[%clk 0:03:01]} 4. Nxe4 {[%clk 0:03:02]}  Bf5 {[%clk 0:03:02]} 5. Ng3 {[%clk 0:03:02]}  Bg6 {[%clk 0:03:02]} 6. h4 {[%clk 0:03:03]}  h6 {[%clk 0:03:03]} 7. Bc4 {[%clk 0:03:04]}  Nf6 {[%clk 0:03:01]} 8. N1e2 {[%clk 0:03:04]}  e6 {[%clk 0:02:57]} 9. Nf4 {[%clk 0:03:05]}  Bh7 {[%clk 0:02:58]} 10. Nfh5 {[%clk 0:03:05]}  Nbd7 {[%clk 0:02:54]} 11. c3 {[%clk 0:03:05]}  Rg8 {[%clk 0:02:43]} 12. Bf4 {[%clk 0:02:55]}  Qb6 {[%clk 0:02:39]} 13. Qe2 {[%clk 0:02:47]}  O-O-O {[%clk 0:02:36]} 14. b4 {[%clk 0:02:37]}  Nd5 {[%clk 0:02:13]} 15. Bd2 {[%clk 0:02:37]}  Bd6 {[%clk 0:01:57]} 16. Ne4 {[%clk 0:02:28]}  Bxe4 {[%clk 0:01:52]} 17. Qxe4 {[%clk 0:02:29]}  g6 {[%clk 0:01:53]} 18. Ng3 {[%clk 0:02:17]}  e5 {[%clk 0:01:53]} 19. O-O {[%clk 0:01:57]}  N7f6 {[%clk 0:01:48]} 20. Qf3 {[%clk 0:01:42]}  exd4 {[%clk 0:01:45]} 21. Bxd5 {[%clk 0:01:42]}  Nxd5 {[%clk 0:01:43]} 22. c4 {[%clk 0:01:33]}  Nxb4 {[%clk 0:01:36]} 23. Rab1 {[%clk 0:01:24]}  c5 {[%clk 0:01:13]} 24. a3 {[%clk 0:01:20]}  a5 {[%clk 0:01:14]} 25. axb4 {[%clk 0:01:12]}  axb4 {[%clk 0:01:14]} 26. Qxf7 {[%clk 0:01:03]}  Bxg3 {[%clk 0:01:09]} 27. fxg3 {[%clk 0:01:02]}  Rgf8 {[%clk 0:00:57]} 28. Qe7 {[%clk 0:00:44]}  Rxf1+ {[%clk 0:00:53]} 29. Rxf1 {[%clk 0:00:45]}  b3 {[%clk 0:00:54]} 30. Ra1 {[%clk 0:00:40]}  Rd7 {[%clk 0:00:40]} 31. Ra8+ {[%clk 0:00:39]}  Kc7 {[%clk 0:00:34]} 32. Bf4+ {[%clk 0:00:40]} 1-0


[Site "https://www.chess.com"]

[Event "Titled Tuesday Blitz October 31 Early 2023"]
[White "Haitin, Ilja"]
[Black "Mndapoetzz04"]
[WhiteFideId "4501764"]
[WhiteElo "2423"]
[BlackElo "2702"]
[Result "0-1"]
[Round "7"]
[TimeControl "180+1"]
[Date "2023.10.31"]
[WhiteClock "0:00:00"]
[BlackClock "0:00:21"]
[Board "50"]

1. Nf3 {[%clk 0:03:00]}  d5 {[%clk 0:02:59]} 2. g3 {[%clk 0:03:00]}  Nf6 {[%clk 0:02:59]} 3. Bg2 {[%clk 0:02:59]}  Bf5 {[%clk 0:02:59]} 4. c4 {[%clk 0:02:57]}  c6 {[%clk 0:02:59]} 5. Qb3 {[%clk 0:02:53]}  Qb6 {[%clk 0:02:59]} 6. O-O {[%clk 0:02:47]}  e6 {[%clk 0:02:59]} 7. d3 {[%clk 0:02:39]}  Nbd7 {[%clk 0:02:56]} 8. cxd5 {[%clk 0:02:38]}  exd5 {[%clk 0:02:56]} 9. Qc2 {[%clk 0:02:36]}  Be7 {[%clk 0:02:56]} 10. Nc3 {[%clk 0:02:35]}  h6 {[%clk 0:02:54]} 11. e4 {[%clk 0:02:34]}  Bh7 {[%clk 0:02:54]} 12. Qe2 {[%clk 0:02:31]}  O-O {[%clk 0:02:39]} 13. e5 {[%clk 0:02:05]}  Ne8 {[%clk 0:02:36]} 14. e6 {[%clk 0:02:01]}  fxe6 {[%clk 0:02:16]} 15. Qxe6+ {[%clk 0:02:00]}  Rf7 {[%clk 0:02:15]} 16. Qxd7 {[%clk 0:01:37]}  Bf5 {[%clk 0:02:15]} 17. Nxd5 {[%clk 0:01:23]}  cxd5 {[%clk 0:02:12]} 18. Qxd5 {[%clk 0:01:20]}  Rd8 {[%clk 0:02:12]} 19. Qb3 {[%clk 0:01:13]}  Bf6 {[%clk 0:01:23]} 20. Be3 {[%clk 0:01:07]}  Qxb3 {[%clk 0:01:20]} 21. axb3 {[%clk 0:01:08]}  Bxb2 {[%clk 0:01:19]} 22. Rxa7 {[%clk 0:01:07]}  Rxd3 {[%clk 0:01:12]} 23. Nh4 {[%clk 0:00:52]}  Be6 {[%clk 0:01:08]} 24. Ra8 {[%clk 0:00:43]}  Rf8 {[%clk 0:00:48]} 25. Ng6 {[%clk 0:00:41]}  Rxe3 {[%clk 0:00:33]} 26. fxe3 {[%clk 0:00:30]}  Rxf1+ {[%clk 0:00:33]} 27. Bxf1 {[%clk 0:00:12]}  Kf7 {[%clk 0:00:33]} 28. Bc4 {[%clk 0:00:11]}  Bxc4 {[%clk 0:00:32]} 29. bxc4 {[%clk 0:00:11]}  Nd6 {[%clk 0:00:33]} 30. Ne5+ {[%clk 0:00:07]}  Bxe5 {[%clk 0:00:32]} 31. c5 {[%clk 0:00:05]}  Ne4 {[%clk 0:00:26]} 32. Ra7 {[%clk 0:00:04]}  Nxc5 {[%clk 0:00:26]} 33. Kf2 {[%clk 0:00:03]}  Ke6 {[%clk 0:00:25]} 34. Kf3 {[%clk 0:00:03]}  b6 {[%clk 0:00:24]} 35. h4 {[%clk 0:00:02]}  Nd7 {[%clk 0:00:24]} 36. g4 {[%clk 0:00:01]}  Bd6 {[%clk 0:00:24]} 37. g5 {[%clk 0:00:01]}  hxg5 {[%clk 0:00:24]} 38. hxg5 {[%clk 0:00:02]}  Ne5+ {[%clk 0:00:25]} 39. Ke4 {[%clk 0:00:02]}  Nf7 {[%clk 0:00:21]} 40. g6 {[%clk 0:00:02]}  Ng5+ {[%clk 0:00:21]} 41. Kd4 {[%clk 0:00:02]}  Bc5+ {[%clk 0:00:20]} 42. Kd3 {[%clk 0:00:00]}  Kf6 {[%clk 0:00:21]} 0-1


[Site "https://www.chess.com"]

[Event "Titled Tuesday Blitz October 31 Early 2023"]
[White "Halkias, Stelios"]
[Black "Herzog2012"]
[WhiteFideId "4201809"]
[WhiteElo "2718"]
[BlackElo "2565"]
[Result "1/2-1/2"]
[Round "7"]
[TimeControl "180+1"]
[Date "2023.10.31"]
[WhiteClock "0:00:20"]
[BlackClock "0:00:06"]
[Board "54"]

1. Nf3 {[%clk 0:02:56]}  Nf6 {[%clk 0:02:59]} 2. c4 {[%clk 0:02:53]}  e6 {[%clk 0:02:59]} 3. g3 {[%clk 0:02:52]}  d5 {[%clk 0:02:58]} 4. d4 {[%clk 0:02:52]}  Be7 {[%clk 0:02:58]} 5. Bg2 {[%clk 0:02:51]}  O-O {[%clk 0:02:58]} 6. O-O {[%clk 0:02:51]}  dxc4 {[%clk 0:02:58]} 7. Qc2 {[%clk 0:02:50]}  a6 {[%clk 0:02:57]} 8. a4 {[%clk 0:02:50]}  Bd7 {[%clk 0:02:57]} 9. Qxc4 {[%clk 0:02:51]}  Bc6 {[%clk 0:02:57]} 10. Bf4 {[%clk 0:02:51]}  a5 {[%clk 0:02:53]} 11. Nc3 {[%clk 0:02:50]}  Na6 {[%clk 0:02:53]} 12. Ne5 {[%clk 0:02:46]}  Bxg2 {[%clk 0:02:52]} 13. Kxg2 {[%clk 0:02:46]}  Nb4 {[%clk 0:02:42]} 14. e4 {[%clk 0:02:45]}  c6 {[%clk 0:02:33]} 15. Rfd1 {[%clk 0:02:44]}  Bd6 {[%clk 0:02:31]} 16. Bg5 {[%clk 0:02:32]}  Be7 {[%clk 0:02:20]} 17. Rac1 {[%clk 0:02:29]}  Qc7 {[%clk 0:02:01]} 18. Qe2 {[%clk 0:02:26]}  Qb6 {[%clk 0:01:55]} 19. Be3 {[%clk 0:02:23]}  Qa6 {[%clk 0:01:53]} 20. Qf3 {[%clk 0:02:21]}  Rad8 {[%clk 0:01:50]} 21. h4 {[%clk 0:02:05]}  Nd7 {[%clk 0:01:44]} 22. Bf4 {[%clk 0:01:57]}  Nxe5 {[%clk 0:01:43]} 23. Bxe5 {[%clk 0:01:57]}  f6 {[%clk 0:01:28]} 24. Bf4 {[%clk 0:01:55]}  e5 {[%clk 0:01:28]} 25. Be3 {[%clk 0:01:41]}  Nd3 {[%clk 0:01:26]} 26. dxe5 {[%clk 0:00:59]}  Nxc1 {[%clk 0:01:11]} 27. Rxc1 {[%clk 0:00:57]}  fxe5 {[%clk 0:01:01]} 28. Qg4 {[%clk 0:00:58]}  Kh8 {[%clk 0:00:51]} 29. h5 {[%clk 0:00:56]}  Qd3 {[%clk 0:00:36]} 30. h6 {[%clk 0:00:52]}  g6 {[%clk 0:00:35]} 31. Rd1 {[%clk 0:00:46]}  Qc4 {[%clk 0:00:35]} 32. Rd7 {[%clk 0:00:41]}  Rxd7 {[%clk 0:00:17]} 33. Qxd7 {[%clk 0:00:41]}  Qf7 {[%clk 0:00:17]} 34. Qxb7 {[%clk 0:00:34]}  Bb4 {[%clk 0:00:12]} 35. Qxc6 {[%clk 0:00:30]}  Bxc3 {[%clk 0:00:11]} 36. bxc3 {[%clk 0:00:23]}  Qf3+ {[%clk 0:00:10]} 37. Kh2 {[%clk 0:00:21]}  Qh5+ {[%clk 0:00:10]} 38. Kg2 {[%clk 0:00:21]}  Qf3+ {[%clk 0:00:10]} 39. Kg1 {[%clk 0:00:21]}  Qd1+ {[%clk 0:00:09]} 40. Kh2 {[%clk 0:00:20]}  Qh5+ {[%clk 0:00:08]} 41. Kg2 {[%clk 0:00:20]}  Qf3+ {[%clk 0:00:06]} 1/2-1/2


[Site "https://www.chess.com"]